Workbook

Sheet Legend
A1: Dataset EV20. Total numbers after running RanSEPs in 109 bacterial genomes. Column A includes the associated species number that is used in the clustered heat map of Figure 5. The following columns include the genome reference information represented as the full organism name (column B), genbank accession number (C), the unique organism code used in the RanSEPs databases (D) and the 5 letter code used as a prefix for each putative protein (E). Column F includes an article reference if the SEPs have been described in that organism before. Column G, H and I have information about the genome size (in bases), the GC content of each organism and the total number of ORFs and smORFs detected in that genome.
A2: Columns J to M include information relative to the reference annotation, with J including the number of SEPs annotated in that organism, the percentage of coding sequences (CDS) represented by them (K) and the TPRs (annotated SEPs properly predicted) with two score thresholds: 0.5 and 0.65 (Columns L and M). It is important to remark that TPR is computed with a specific configuration of RanSEPs (see manual) to iteratively predict classes within a set of proteins (annotated ones in this case) without including them in the training sets and they do not correspond to the values a user would obtain running RanSEPs in a regular manner. Column N includes the SEPs predicted as positive (0.5 score) not previously found in the reference, the percentage that they would imply (O) and the same after prioritizing the results by removing potential pseudogenes and repeated sequences (P and Q). This same structure is used in columns R-U to describe the same results but by increasing the threshold to 0.65.

Sheet DatasetEV20_109Bact
A1: Database information | I1: DB size | J1: Annotation NCBI and TPRs | N1: New SEPs >0.5 of probability | R1: New SEPs >0.65 of probability
A2: Species number | B2: organism | C2: accession number | D2: organism code | E2: orf code | F2: previous study | G2: Genome size | H2: GC content | I2: DB size | J2: Nr of SEPs | K2: SEPs/CDS | L2: % Ann SEPs RanSEPs > 0.5 | M2: % Ann SEPs RanSEPs > 0.65 | N2: Nr new SEPs | O2: Ratio (ann+new/Total CDS) | P2: Nr new SEPs Prioritized | Q2: Prioritized ratio (ann+new/Total CDS) | R2: Nr new SEPs | S2: Ratio (ann+new/Total CDS) | T2: Nr new SEPs Prioritized | U2: Prioritized ratio (ann+new/Total CDS)
A3: 1 | B3: Agrobacterium tumefaciens str. C58 | C3: AE007869.2 | D3: atumefaciens | E3: atume | F3: 0 | G3: 2841580 | H3: 59.37520675 | I3: 51567 | J3: 210 | K3: 7.82 | L3: 77.62 | M3: 51.9 | N3: 59 | O3: 9.8 | P3: 57 | Q3: 9.73 | R3: 35 | S3: 9 | T3: 35 | U3: 9
A4: 2 | B4: Bacillus anthracis strain Stendal | C4: CP014179.1 | D4: banthracis | E4: banth | F4: 0 | G4: 5226939 | H4: 35.37667074 | I4: 125784 | J4: 856 | K4: 16.23 | L4: 87.62 | M4: 71.61 | N4: 274 | O4: 20.37 | P4: 274 | Q4: 20.37 | R4: 163 | S4: 18.75 | T4: 163 | U4: 18.75
A5: 16 | B5: Buchnera aphidicola (Diuraphis noxia) | C5: CP013259.1 | D5: baphidicola | E5: baphi | F5: 0 | G5: 636266 | H5: 25.4715795 | I5: 13394 | J5: 43 | K5: 7.71 | L5: 93.02 | M5: 88.37 | N5: 15 | O5: 10.12 | P5: 15 | Q5: 10.12 | R5: 8 | S5: 9.01 | T5: 8 | U5: 9.01
A6: 15 | B6: Buchnera aphidicola (Aphis glycines) | C6: NZ_CP009253.1 | D6: baphidicolaag | E6: baphi | F6: 0 | G6: 628164 | H6: 25.58201361 | I6: 12989 | J6: 42 | K6: 7.59 | L6: 92.86 | M6: 85.71 | N6: 33 | O6: 12.8 | P6: 33 | Q6: 12.8 | R6: 23 | S6: 11.28 | T6: 23 | U6: 11.28
A7: 17 | B7: Buchnera aphidicola (Schlechtendalia chinensis) strain SC | C7: CP011299.1 | D7: baphidicolasc | E7: baphi | F7: 0 | G7: 607835 | H7: 25.79450015 | I7: 12537 | J7: 46 | K7: 9.22 | L7: 95.65 | M7: 80.43 | N7: 38 | O7: 15.64 | P7: 38 | Q7: 15.64 | R7: 29 | S7: 14.2 | T7: 29 | U7: 14.2
A8: 8 | B8: Bordetella bronchiseptica DNA, complete genome, strain: S798 | C8: AP014582.1 | D8: bbronchiseptica | E8: bbron | F8: 0 | G8: 5191712 | H8: 68.21017807 | I8: 58526 | J8: 166 | K8: 3.53 | L8: 84.94 | M8: 72.89 | N8: 113 | O8: 5.8 | P8: 113 | Q8: 5.8 | R8: 77 | S8: 5.09 | T8: 77 | U8: 5.09
A9: 11 | B9: Borrelia burgdorferi strain B31 | C9: NZ_CP009656.1 | D9: bburgdorferi | E9: bburg | F9: 0 | G9: 910687 | H9: 28.59522536 | I9: 18984 | J9: 48 | K9: 5.87 | L9: 97.92 | M9: 77.08 | N9: 3 | O9: 6.21 | P9: 3 | Q9: 6.21 | R9: 1 | S9: 5.98 | T9: 1 | U9: 5.98
A10: 3 | B10: Bacillus cereus NC7401 | C10: AP007209.1 | D10: bcereus | E10: bcere | F10: 0 | G10: 5221581 | H10: 35.59374067 | I10: 125493 | J10: 896 | K10: 16.67 | L10: 83.93 | M10: 65.51 | N10: 164 | O10: 19.13 | P10: 161 | Q10: 19.09 | R10: 92 | S10: 18.07 | T10: 91 | U10: 18.05
A11: 12 | B11: Bradyrhizobium japonicum USDA110 | C11: NC_004463.1 | D11: bjaponicum | E11: bjapo | F11: 0 | G11: 9105828 | H11: 64.05938043 | I11: 145476 | J11: 543 | K11: 6.77 | L11: 75.69 | M11: 47.88 | N11: 76 | O11: 7.65 | P11: 75 | Q11: 7.64 | R11: 32 | S11: 7.14 | T11: 32 | U11: 7.14
A12: 7 | B12: Bifidobacterium longum DJO10A | C12: NC_010816.1 | D12: blongum | E12: blong | F12: 0 | G12: 2375792 | H12: 60.14609023 | I12: 42285 | J12: 139 | K12: 7.32 | L12: 86.33 | M12: 61.15 | N12: 35 | O12: 9 | P12: 34 | Q12: 8.95 | R12: 15 | S12: 8.05 | T12: 15 | U12: 8.05
A13: 13 | B13: Brucella melitensis 16M | C13: NC_003318.1 | D13: bmelitensis | E13: bmeli | F13: 0 | G13: 1177787 | H13: 57.33787179 | I13: 23791 | J13: 110 | K13: 10.31 | L13: 71.82 | M13: 45.45 | N13: 35 | O13: 13.16 | P13: 34 | Q13: 13.08 | R13: 24 | S13: 12.28 | T13: 24 | U13: 12.28
A14: 9 | B14: Bordetella parapertussis strain H904 | C14: CP016342.1 | D14: bparapertusis | E14: bpara | F14: 0 | G14: 4773708 | H14: 68.1000388 | I14: 54600 | J14: 148 | K14: 3.6 | L14: 91.89 | M14: 79.05 | N14: 147 | O14: 6.92 | P14: 146 | Q14: 6.9 | R14: 107 | S14: 6.04 | T14: 107 | U14: 6.04
A15: 10 | B15: Bordetella pertussis strain B3921 | C15: CP011448.1 | D15: bpertusis | E15: bpert | F15: 0 | G15: 4111557 | H15: 67.70157875 | I15: 49452 | J15: 146 | K15: 4.73 | L15: 90.41 | M15: 77.4 | N15: 157 | O15: 9.33 | P15: 156 | Q15: 9.31 | R15: 108 | S15: 7.94 | T15: 108 | U15: 7.94
A16: 4 | B16: Bacillus subtilis BSn5 | C16: CP002468.1 | D16: bsubtilis | E16: bsubt | F16: 0 | G16: 4093599 | H16: 43.84730893 | I16: 100016 | J16: 612 | K16: 14.8 | L16: 84.15 | M16: 60.62 | N16: 105 | O16: 16.91 | P16: 104 | Q16: 16.89 | R16: 52 | S16: 15.86 | T16: 52 | U16: 15.86
A17: 14 | B17: Brucella suis 1330 chromosome I | C17: NC_017251.1 | D17: bsuis | E17: bsuis | F17: 0 | G17: 2107783 | H17: 57.21404907 | I17: 42031 | J17: 226 | K17: 11.16 | L17: 79.2 | M17: 52.21 | N17: 53 | O17: 13.43 | P17: 48 | Q17: 13.22 | R17: 27 | S17: 12.33 | T17: 27 | U17: 12.33
A18: 6 | B18: Bacteroides thetaiotaomicron strain 7330 | C18: NZ_CP012937.1 | D18: bthetaiotaomicron | E18: bthet | F18: 0 | G18: 6487685 | H18: 42.69069784 | I18: 148712 | J18: 357 | K18: 7.38 | L18: 81.51 | M18: 54.62 | N18: 59 | O18: 8.5 | P18: 59 | Q18: 8.5 | R18: 29 | S18: 7.93 | T18: 29 | U18: 7.93
A19: 23 | B19: Clostridium botulinum A str. ATCC 19397 | C19: NC_009697.1 | D19: cbotulinum | E19: cbotu | F19: 0 | G19: 3863450 | H19: 28.20533461 | I19: 70715 | J19: 507 | K19: 14.23 | L19: 87.77 | M19: 66.86 | N19: 51 | O19: 15.44 | P19: 49 | Q19: 15.39 | R19: 28 | S19: 14.89 | T19: 26 | U19: 14.85
A20: 27 | B20: Coxiella burnetii strain RSA 439 | C20: CP020616.1 | D20: cburnetii | E20: cburn | F20: 0 | G20: 1969224 | H20: 42.71647106 | I20: 47599 | J20: 353 | K20: 18.36 | L20: 73.94 | M20: 54.11 | N20: 54 | O20: 20.59 | P20: 53 | Q20: 20.55 | R20: 23 | S20: 19.32 | T20: 22 | U20: 19.28
A21: 19 | B21: Caulobacter crescentus CB15 | C21: NC_002696.2 | D21: ccrescentus | E21: ccres | F21: 0 | G21: 4016947 | H21: 67.21398117 | I21: 52782 | J21: 231 | K21: 6.23 | L21: 79.65 | M21: 57.14 | N21: 40 | O21: 7.24 | P21: 40 | Q21: 7.24 | R21: 21 | S21: 6.76 | T21: 21 | U21: 6.76
A22: 26 | B22: Corynebacterium glutamicum DNA, complete genome, strain: AJ1511 | C22: AP017557.1 | D22: cglutamicum | E22: cglut | F22: 0 | G22: 3272611 | H22: 54.22251529 | I22: 73799 | J22: 202 | K22: 7.39 | L22: 78.71 | M22: 53.96 | N22: 58 | O22: 9.32 | P22: 58 | Q22: 9.32 | R22: 24 | S22: 8.2 | T22: 24 | U22: 8.2
A23: 18 | B23: Campylobacter jejuni subsp. jejuni NCTC 11168 complete genome | C23: AL111168.1 | D23: cjejuni | E23: cjeju | F23: 0 | G23: 1641481 | H23: 30.54857169 | I23: 35989 | J23: 145 | K23: 8.98 | L23: 86.9 | M23: 70.34 | N23: 34 | O23: 10.86 | P23: 34 | Q23: 10.86 | R23: 16 | S23: 9.88 | T23: 16 | U23: 9.88
A24: 24 | B24: Clostridium perfringens str. 13 DN | C24: BA000016.3 | D24: cperfringens | E24: cperf | F24: 0 | G24: 3031430 | H24: 28.56605628 | I24: 55067 | J24: 248 | K24: 9.48 | L24: 93.55 | M24: 81.45 | N24: 31 | O24: 10.54 | P24: 31 | Q24: 10.54 | R24: 18 | S24: 10.09 | T24: 18 | U24: 10.09
A25: 20 | B25: Chlamydophila pneumoniae TW-183 | C25: AE009440.1 | D25: cpneumoniae | E25: cpneu | F25: 0 | G25: 1225935 | H25: 40.57621326 | I25: 28288 | J25: 140 | K25: 12.59 | L25: 77.86 | M25: 52.14 | N25: 9 | O25: 13.29 | P25: 9 | Q25: 13.29 | R25: 3 | S25: 12.83 | T25: 3 | U25: 12.83
A26: 21 | B26: Chlorobium tepidum TLS chromosome, complete genome | C26: NC_002932.3 | D26: ctepidum | E26: ctepi | F26: 0 | G26: 2154946 | H26: 56.52967638 | I26: 39653 | J26: 433 | K26: 19.39 | L26: 68.82 | M26: 45.73 | N26: 26 | O26: 20.32 | P26: 26 | Q26: 20.32 | R26: 21 | S26: 20.14 | T26: 21 | U26: 20.14
A27: 25 | B27: Clostridium tetani E88 | C27: NC_004557.1 | D27: ctetani | E27: cteta | F27: 0 | G27: 2799251 | H27: 28.74929758 | I27: 51991 | J27: 253 | K27: 9.75 | L27: 94.07 | M27: 80.63 | N27: 55 | O27: 11.62 | P27: 53 | Q27: 11.55 | R27: 28 | S27: 10.71 | T27: 28 | U27: 10.71
A28: 28 | B28: Dehalococcoides ethenogenes 195 | C28: NC_002936.3 | D28: dethenogenes | E28: dethe | F28: 0 | G28: 1469720 | H28: 48.85025719 | I28: 29379 | J28: 168 | K28: 12.07 | L28: 86.9 | M28: 52.98 | N28: 14 | O28: 12.94 | P28: 14 | Q28: 12.94 | R28: 9 | S28: 12.63 | T28: 9 | U28: 12.63
A29: 29 | B29: Escherichia coli CFT073 | C29: AE014075.1 | D29: ecoli | E29: ecoli | F29: 0 | G29: 5231428 | H29: 50.47533866 | I29: 118838 | J29: 861 | K29: 16.35 | L29: 72.13 | M29: 48.66 | N29: 392 | O29: 22.15 | P29: 392 | Q29: 22.15 | R29: 272 | S29: 20.46 | T29: 272 | U29: 20.46
A30: 32 | B30: Geobacter sulfurreducens strain AM-1 genome | C30: CP010430.1 | D30: gsulfurreducens | E30: gsulf | F30: 0 | G30: 4566144 | H30: 60.18209237 | I30: 78121 | J30: 289 | K30: 7.71 | L30: 82.35 | M30: 62.63 | N30: 57 | O30: 9.1 | P30: 57 | Q30: 9.1 | R30: 29 | S30: 8.42 | T30: 29 | U30: 8.42
A31: 33 | B31: Haemophilus influenzae 10810 | C31: NC_016809.1 | D31: hinfluenzae | E31: hinfl | F31: 0 | G31: 1981535 | H31: 38.14149132 | I31: 50597 | J31: 159 | K31: 8.81 | L31: 89.31 | M31: 72.33 | N31: 74 | O31: 12.4 | P31: 73 | Q31: 12.35 | R31: 54 | S31: 11.46 | T31: 54 | U31: 11.46
A32: 34 | B32: Helicobacter pylori 2018 | C32: NC_017381.1 | D32: hpylori | E32: hpylo | F32: 0 | G32: 1562832 | H32: 39.29347492 | I32: 34036 | J32: 142 | K32: 10.24 | L32: 80.28 | M32: 61.97 | N32: 47 | O32: 13.18 | P32: 46 | Q32: 13.12 | R32: 20 | S32: 11.51 | T32: 20 | U32: 11.51
A33: 39 | B33: Listeria monocytogenes strain 10-092876-0055 LM4 | C33: CP019617.1 | D33: lmonocytogenes | E33: lmono | F33: 0 | G33: 2989685 | H33: 37.86141349 | I33: 72424 | J33: 281 | K33: 9.7 | L33: 90.39 | M33: 75.44 | N33: 55 | O33: 11.38 | P33: 54 | Q33: 11.35 | R33: 38 | S33: 10.87 | T33: 38 | U33: 10.87
A34: 36 | B34: Lactobacillus plantarum strain TMW 1.277 chromosome, complete genome | C34: CP017363.1 | D34: lplantarum | E34: lplan | F34: 0 | G34: 3099387 | H34: 44.5966896 | I34: 80769 | J34: 229 | K34: 8.59 | L34: 91.7 | M34: 74.24 | N34: 55 | O34: 10.44 | P34: 55 | Q34: 10.44 | R34: 25 | S34: 9.44 | T34: 25 | U34: 9.44
A35: 37 | B35: Lactococcus lactis strain AI06 | C35: NZ_CP009472.1 | D35: llactis | E35: llact | F35: 0 | G35: 2398091 | H35: 35.04341578 | I35: 58168 | J35: 176 | K35: 8.14 | L35: 88.64 | M35: 64.77 | N35: 55 | O35: 10.42 | P35: 55 | Q35: 10.42 | R35: 21 | S35: 9.03 | T35: 21 | U35: 9.03
A36: 45 | B36: Mycoplasma agalactiae 5632 | C36: NC_013948.1 | D36: magalactiae | E36: magal | F36: 0 | G36: 1006702 | H36: 29.62405955 | I36: 24255 | J36: 55 | K36: 7.48 | L36: 96.36 | M36: 80 | N36: 34 | O36: 11.57 | P36: 34 | Q36: 11.57 | R36: 20 | S36: 9.93 | T36: 20 | U36: 9.93
A37: 46 | B37: Mycoplasma arginini strain: HAZ145_1 | C37: NZ_AP014657.1 | D37: marginini | E37: margi | F37: 0 | G37: 678592 | H37: 26.37726351 | I37: 15454 | J37: 48 | K37: 8.65 | L37: 100 | M37: 87.5 | N37: 11 | O37: 10.42 | P37: 10 | Q37: 10.27 | R37: 4 | S37: 9.3 | T37: 4 | U37: 9.3
A38: 42 | B38: Mycobacterium bovis AF2122/97 | C38: NC_002945.4 | D38: mbbovisaf | E38: mbbov | F38: 0 | G38: 4349904 | H38: 65.63259787 | I38: 73761 | J38: 278 | K38: 7 | L38: 83.81 | M38: 60.07 | N38: 222 | O38: 11.93 | P38: 220 | Q38: 11.89 | R38: 142 | S38: 10.22 | T38: 141 | U38: 10.19
A39: 47 | B39: Mycoplasma bovis PG45 | C39: CP002188.1 | D39: mbovis | E39: mbovi | F39: 0 | G39: 1003404 | H39: 29.31471272 | I39: 24125 | J39: 65 | K39: 8.78 | L39: 95.38 | M39: 90.77 | N39: 51 | O39: 14.66 | P39: 51 | Q39: 14.66 | R39: 31 | S39: 12.45 | T39: 31 | U39: 12.45
A40: 48 | B40: Mycoplasma capricolum subsp. capricolum ATCC 27343 | C40: NC_007633.1 | D40: mcapricolum | E40: mcapr | F40: 0 | G40: 1010023 | H40: 23.77044879 | I40: 20975 | J40: 49 | K40: 6.23 | L40: 93.88 | M40: 85.71 | N40: 227 | O40: 27.22 | P40: 209 | Q40: 25.9 | R40: 105 | S40: 17.26 | T40: 99 | U40: 16.7
A41: 30 | B41: Escherichia coli O157:H7 str. Sakai | C41: BA000007.2 | D41: mecoli | E41: mecol | F41: Hucker2017 | G41: 5498450 | H41: 50.53706044 | I41: 124814 | J41: 326 | K41: 12.79 | L41: 78.83 | M41: 55.52 | N41: 851 | O41: 34.62 | P41: 848 | Q41: 34.56 | R41: 586 | S41: 29.09 | T41: 586 | U41: 29.09
A42: 49 | B42: Mycoplasma fermentans JER | C42: CP001995.1 | D42: mfermentans | E42: mferm | F42: 0 | G42: 977524 | H42: 26.94603918 | I42: 24045 | J42: 73 | K42: 9.41 | L42: 95.89 | M42: 76.71 | N42: 18 | O42: 11.46 | P42: 18 | Q42: 11.46 | R42: 10 | S42: 10.56 | T42: 10 | U42: 10.56
A43: 50 | B43: Mycoplasma flocculare ATCC 27399 | C43: NZ_CP007585.1 | D43: mflocculare | E43: mfloc | F43: 0 | G43: 778866 | H43: 28.95799791 | I43: 18370 | J43: 42 | K43: 7.49 | L43: 100 | M43: 83.33 | N43: 11 | O43: 9.27 | P43: 11 | Q43: 9.27 | R43: 7 | S43: 8.63 | T43: 7 | U43: 8.63
A44: 41 | B44: Mesoplasma florum L1 | C44: NC_006055.1 | D44: mflorum | E44: mflor | F44: 0 | G44: 793224 | H44: 27.02048854 | I44: 18616 | J44: 44 | K44: 6.48 | L44: 95.45 | M44: 86.36 | N44: 2 | O44: 6.75 | P44: 1 | Q44: 6.62 | R44: 0 | S44: 6.48 | T44: 0 | U44: 6.48
A45: 52 | B45: Mycoplasma gallisepticum R(low) | C45: AE015450.2 | D45: mgallisepticum | E45: mgall | F45: 0 | G45: 1012800 | H45: 31.46988547 | I45: 23732 | J45: 65 | K45: 8.8 | L45: 93.85 | M45: 78.46 | N45: 43 | O45: 13.81 | P45: 42 | Q45: 13.7 | R45: 22 | S45: 11.43 | T45: 22 | U45: 11.43
A46: 53 | B46: Mycoplasma genitalium G37 | C46: NC_000908.2 | D46: mgenitalium | E46: mgeni | F46: 0 | G46: 580076 | H46: 31.68912349 | I46: 13919 | J46: 26 | K46: 5.14 | L46: 100 | M46: 88.46 | N46: 82 | O46: 18.37 | P46: 76 | Q46: 17.53 | R46: 47 | S46: 13.2 | T46: 46 | U46: 13.04
A47: 51 | B47: Mycoplasma gallisepticum R(high) | C47: NC_017502 | D47: mhigh | E47: mhigh | F47: 0 | G47: 1012027 | H47: 31.46744109 | I47: 23715 | J47: 65 | K47: 9.17 | L47: 89.23 | M47: 72.31 | N47: 283 | O47: 35.08 | P47: 249 | Q47: 32.78 | R47: 126 | S47: 22.87 | T47: 104 | U47: 20.79
A48: 54 | B48: Mycoplasma hominis ATCC 23114 | C48: NC_013511.1 | D48: mhominis | E48: mhomi | F48: 0 | G48: 665445 | H48: 27.11824418 | I48: 16207 | J48: 52 | K48: 9.51 | L48: 94.23 | M48: 88.46 | N48: 9 | O48: 10.97 | P48: 9 | Q48: 10.97 | R48: 5 | S48: 10.33 | T48: 5 | U48: 10.33
A49: 55 | B49: Mycoplasma hyopneumoniae 168 | C49: NC_017509.1 | D49: mhyopneumoniae | E49: mhyop | F49: 0 | G49: 925576 | H49: 28.45665834 | I49: 20223 | J49: 50 | K49: 7.67 | L49: 96 | M49: 86 | N49: 320 | O49: 38.07 | P49: 312 | Q49: 37.55 | R49: 138 | S49: 23.8 | T49: 132 | U49: 23.21
A50: 43 | B50: Mycobacterium leprae TN | C50: AL450380.1 | D50: mleprae | E50: mlepr | F50: 0 | G50: 3268203 | H50: 57.79674641 | I50: 78480 | J50: 124 | K50: 7.77 | L50: 79.84 | M50: 56.45 | N50: 795 | O50: 38.45 | P50: 793 | Q50: 38.4 | R50: 534 | S50: 30.91 | T50: 534 | U50: 30.91
A51: 56 | B51: Mycoplasma mobile 163K | C51: NC_006908.1 | D51: mmobile | E51: mmobi | F51: 0 | G51: 777079 | H51: 24.95125978 | I51: 17572 | J51: 50 | K51: 7.73 | L51: 96 | M51: 80 | N51: 2 | O51: 8.01 | P51: 2 | Q51: 8.01 | R51: 1 | S51: 7.87 | T51: 1 | U51: 7.87
A52: 57 | B52: Mycoplasma mycoides subsp. capri LC str. 95010 | C52: NC_015431.1 | D52: mmycoides | E52: mmyco | F52: 0 | G52: 1153998 | H52: 23.81589916 | I52: 22316 | J52: 56 | K52: 6.76 | L52: 92.86 | M52: 78.57 | N52: 251 | O52: 28.43 | P52: 225 | Q52: 26.66 | R52: 117 | S52: 18.29 | T52: 107 | U52: 17.41
A53: 58 | B53: Mycoplasma pneumoniae M129 | C53: NC_000912.1 | D53: mpneumoniae | E53: mpneu | F53: 0 | G53: 816394 | H53: 40.00801084 | I53: 19110 | J53: 26 | K53: 4.1 | L53: 92.31 | M53: 73.08 | N53: 122 | O53: 19.79 | P53: 108 | Q53: 18.06 | R53: 35 | S53: 9.12 | T53: 30 | U53: 8.43
A54: 59 | B54: Mycoplasma pulmonis UAB CTIP | C54: NC_002771.1 | D54: mpulmonis | E54: mpulm | F54: 0 | G54: 963879 | H54: 26.6365384 | I54: 22905 | J54: 51 | K54: 6.95 | L54: 92.16 | M54: 72.55 | N54: 6 | O54: 7.7 | P54: 6 | Q54: 7.7 | R54: 1 | S54: 7.07 | T54: 1 | U54: 7.07
A55: 44 | B55: Mycobacterium tuberculosis CCDC5180 | C55: CP002885.1 | D55: mtuberculosis | E55: mtube | F55: 0 | G55: 4414346 | H55: 65.60666065 | I55: 75036 | J55: 379 | K55: 9.27 | L55: 79.16 | M55: 55.94 | N55: 118 | O55: 11.82 | P55: 115 | Q55: 11.76 | R55: 77 | S55: 10.95 | T55: 77 | U55: 10.95
A56: 60 | B56: Neisseria meningitidis 8013 | C56: NC_017501.1 | D56: nmeningitidis | E56: nmeni | F56: 0 | G56: 2277550 | H56: 51.42552304 | I56: 46840 | J56: 378 | K56: 17.72 | L56: 71.69 | M56: 47.35 | N56: 50 | O56: 19.61 | P56: 50 | Q56: 19.61 | R56: 33 | S56: 18.98 | T56: 33 | U56: 18.98
A57: 61 | B57: Nostoc sp. PCC 7120 | C57: BA000019.2 | D57: nostoc | E57: nosto | F57: 0 | G57: 6413771 | H57: 41.34754733 | I57: 159589 | J57: 664 | K57: 12.69 | L57: 84.19 | M57: 60.84 | N57: 101 | O57: 14.34 | P57: 96 | Q57: 14.26 | R57: 23 | S57: 13.07 | T57: 23 | U57: 13.07
A58: 66 | B58: Pseudomonas aeruginosa M18 | C58: NC_017548.1 | D58: paeruginosa | E58: paeru | F58: 0 | G58: 6327754 | H58: 66.50427624 | I58: 76499 | J58: 306 | K58: 5.24 | L58: 82.68 | M58: 63.07 | N58: 65 | O58: 6.28 | P58: 65 | Q58: 6.28 | R58: 43 | S58: 5.93 | T58: 43 | U58: 5.93
A59: 62 | B59: Parachlamydia-related symbiont UWE25 | C59: NC_005861.1 | D59: parachlamydia | E59: parac | F59: 0 | G59: 2414465 | H59: 34.7172562 | I59: 58633 | J59: 233 | K59: 12.81 | L59: 84.98 | M59: 65.24 | N59: 83 | O59: 16.61 | P59: 72 | Q59: 16.13 | R59: 29 | S59: 14.18 | T59: 24 | U59: 13.94
A60: 5 | B60: Bacillus subtilis subsp. subtilis str. 168 | C60: AL009126.3 | D60: pbsubtilis | E60: pbsub | F60: Friedman2017 | G60: 4215606 | H60: 43.51440813 | I60: 103148 | J60: 264 | K60: 13.21 | L60: 86.74 | M60: 62.12 | N60: 393 | O60: 27.48 | P60: 393 | Q60: 27.48 | R60: 276 | S60: 23.75 | T60: 276 | U60: 23.75
A61: 22 | B61: Clostridium acetobutylicum ATCC 824 | C61: AE001437.1 | D61: pcacetobutylicum | E61: pcace | F61: Friedman2017 | G61: 3940880 | H61: 30.92578307 | I61: 82344 | J61: 192 | K61: 10.35 | L61: 88.54 | M61: 73.96 | N61: 186 | O61: 18.52 | P61: 186 | Q61: 18.52 | R61: 116 | S61: 15.63 | T61: 116 | U61: 15.63
A62: 31 | B62: Escherichia coli str. K12 substr. MG1655 | C62: U00096.3 | D62: pecoli | E62: pecol | F62: Friedman2017 | G62: 4641652 | H62: 50.79070986 | I62: 105460 | J62: 219 | K62: 10.6 | L62: 81.27 | M62: 53.42 | N62: 717 (506 were annotated in other Bacteria) | O62: 33.77 | P62: 713 | Q62: 33.77 | R62: 475 | S62: 27.56 | T62: 475 | U62: 27.56
A63: 64 | B63: Porphyromonas gingivalis TDC60 DNA, complete genome | C63: AP012203.1 | D63: pgingivalis | E63: pging | F63: 0 | G63: 2339898 | H63: 48.34262006 | I63: 51273 | J63: 409 | K63: 19.3 | L63: 69.44 | M63: 48.41 | N63: 19 | O63: 20.02 | P63: 19 | Q63: 20.02 | R63: 15 | S63: 19.87 | T63: 15 | U63: 19.87
A64: 35 | B64: Helicobacter pylori 26695 | C64: CP003904.1 | D64: phpylori | E64: phpyl | F64: Friedman2017 | G64: 1667892 | H64: 38.87326038 | I64: 36778 | J64: 119 | K64: 15.74 | L64: 79.83 | M64: 59.66 | N64: 94 | O64: 25.06 | P64: 94 | Q64: 25.06 | R64: 64 | S64: 22.32 | T64: 64 | U64: 22.32
A65: 63 | B65: Pirellula sp. SH-Sr6A | C65: CP011272.1 | D65: pirellula | E65: pirel | F65: 0 | G65: 6534136 | H65: 54.24730982 | I65: 140876 | J65: 451 | K65: 8.83 | L65: 69.62 | M65: 48.34 | N65: 20 | O65: 9.19 | P65: 20 | Q65: 9.19 | R65: 11 | S65: 9.03 | T65: 11 | U65: 9.03
A66: 40 | B66: Listeria monocytogenes strain EGD | C66: AL591824.1 | D66: plmonocytogenes | E66: plmon | F66: Friedman2017 | G66: 2944528 | H66: 37.98102786 | I66: 71331 | J66: 116 | K66: 8.41 | L66: 93.1 | M66: 84.48 | N66: 159 | O66: 17.87 | P66: 159 | Q66: 17.87 | R66: 107 | S66: 15 | T66: 107 | U66: 15
A67: 38 | B67: Legionella pneumophila subsp. pneumophila str. Philadelphia | C67: AE017354.1 | D67: plpneumophila | E67: plpne | F67: Friedman2017 | G67: 3397754 | H67: 38.26951569 | I67: 86896 | J67: 93 | K67: 6.45 | L67: 84.95 | M67: 73.12 | N67: 156 | O67: 15.58 | P67: 155 | Q67: 15.53 | R67: 103 | S67: 12.69 | T67: 102 | U67: 12.63
A68: 65 | B68: Prochlorococcus marinus CCMP1375 | C68: NC_005042.1 | D68: pmarinus | E68: pmari | F68: 0 | G68: 1751080 | H68: 36.44213857 | I68: 43329 | J68: 378 | K68: 21.55 | L68: 84.66 | M68: 56.08 | N68: 30 | O68: 22.87 | P68: 30 | Q68: 22.87 | R68: 11 | S68: 22.04 | T68: 11 | U68: 22.04
A69: 67 | B69: Pseudomonas putida strain PP112420 | C69: CP017073.1 | D69: pputida | E69: pputi | F69: 0 | G69: 6031212 | H69: 62.01314097 | I69: 105729 | J69: 282 | K69: 5.39 | L69: 87.23 | M69: 68.09 | N69: 209 | O69: 9.03 | P69: 206 | Q69: 8.98 | R69: 135 | S69: 7.78 | T69: 135 | U69: 7.78
A70: 90 | B70: Staphylococcus aureus subsp. aureus NCTC 8325 | C70: CP000253.1 | D70: psaucreus | E70: psauc | F70: Friedman2017 | G70: 2821361 | H70: 32.86825046 | I70: 70526 | J70: 234 | K70: 17.37 | L70: 79.06 | M70: 59.83 | N70: 335 | O70: 33.83 | P70: 335 | Q70: 33.83 | R70: 211 | S70: 28.56 | T70: 211 | U70: 28.56
A71: 89 | B71: Staphylococcus aureus subsp. aureus N315 | C71: NC_002745.2 | D71: psaunreus | E71: psaun | F71: Friedman2017 | G71: 2814816 | H71: 32.8434967 | I71: 70482 | J71: 212 | K71: 22.06 | L71: 76.42 | M71: 58.49 | N71: 328 | O71: 41.89 | P71: 327 | Q71: 41.85 | R71: 218 | S71: 36.47 | T71: 218 | U71: 36.47
A72: 74 | B72: Salmonella enterica subsp. enterica serovar Typhimurium SL1344 | C72: FQ312003.1 | D72: psenterica | E72: psent | F72: Friedman2017 | G72: 4878012 | H72: 52.18332796 | I72: 103531 | J72: 197 | K72: 9.28 | L72: 81.22 | M72: 62.44 | N72: 672 | O72: 31.09 | P72: 672 | Q72: 31.09 | R72: 434 | S72: 24.68 | T72: 434 | U72: 24.68
A73: 77 | B73: Sinorhizobium meliloti 1021 | C73: AL591688.1 | D73: psmeliloti | E73: psmel | F73: Friedman2017 | G73: 3654135 | H73: 62.72893585 | I73: 59002 | J73: 110 | K73: 6.44 | L73: 89.09 | M73: 65.45 | N73: 107 | O73: 11.95 | P73: 107 | Q73: 11.95 | R73: 63 | S73: 9.76 | T73: 63 | U73: 9.76
A74: 93 | B74: Streptococcus pneumoniae TIGR4 | C74: AE005672.3 | D74: pspneumoniae | E74: pspne | F74: Friedman2017 | G74: 2160842 | H74: 39.6972569 | I74: 50505 | J74: 208 | K74: 19.31 | L74: 85.58 | M74: 64.9 | N74: 154 | O74: 29.41 | P74: 132 | Q74: 28.12 | R74: 91 | S74: 25.6 | T74: 82 | U74: 25.02
A75: 94 | B75: Streptococcus pyogenes MGAS5005 | C75: CP000017.2 | D75: pspyogenes | E75: pspyo | F75: Friedman2017 | G75: 1838562 | H75: 38.53517042 | I75: 44535 | J75: 119 | K75: 12.93 | L75: 86.55 | M75: 64.71 | N75: 166 | O75: 26.24 | P75: 166 | Q75: 26.24 | R75: 116 | S75: 22.68 | T75: 116 | U75: 22.68
A76: 99 | B76: Synechocystis sp. PCC 6803 | C76: BA000022.2 | D76: psynechocystis | E76: psyne | F76: Friedman2017 | G76: 3573470 | H76: 47.7202551 | I76: 83028 | J76: 124 | K76: 7.71 | L76: 93.55 | M76: 61.29 | N76: 197 | O76: 17.77 | P76: 197 | Q76: 17.77 | R76: 96 | S76: 12.9 | T76: 96 | U76: 12.9
A77: 69 | B77: Rickettsia conorii str. Malish 7, complete genome | C77: NC_003103.1 | D77: rconorii | E77: rcono | F77: 0 | G77: 1268755 | H77: 32.43880812 | I77: 27179 | J77: 356 | K77: 28.01 | L77: 82.02 | M77: 53.65 | N77: 75 | O77: 32.02 | P77: 75 | Q77: 32.02 | R77: 37 | S77: 30.05 | T77: 37 | U77: 30.05
A78: 70 | B78: Rickettsia prowazekii strain Naples-1 | C78: CP014865.1 | D78: rprowazekii | E78: rprow | F78: 0 | G78: 1111769 | H78: 28.9999991 | I78: 23869 | J78: 90 | K78: 10.48 | L78: 94.44 | M78: 80 | N78: 21 | O78: 12.61 | P78: 21 | Q78: 12.61 | R78: 9 | S78: 11.41 | T78: 9 | U78: 11.41
A79: 68 | B79: Ralstonia solanacearum strain EP | C79: CP015115.1 | D79: rsolanacearum | E79: rsola | F79: 0 | G79: 3949527 | H79: 66.59972194 | I79: 54278 | J79: 184 | K79: 5.35 | L79: 86.41 | M79: 59.24 | N79: 42 | O79: 6.49 | P79: 39 | Q79: 6.41 | R79: 22 | S79: 5.95 | T79: 22 | U79: 5.95
A80: 71 | B80: Rickettsia typhi str. Wilmington | C80: NC_006142.1 | D80: rtyphi | E80: rtyph | F80: 0 | G80: 1111496 | H80: 28.91940232 | I80: 24264 | J80: 75 | K80: 9.11 | L80: 93.33 | M80: 74.67 | N80: 43 | O80: 13.63 | P80: 43 | Q80: 13.63 | R80: 26 | S80: 11.9 | T80: 26 | U80: 11.9
A81: 72 | B81: Rubrobacter xylanophilus DSM 9941 | C81: NC_008148.1 | D81: rxylanophilum | E81: rxyla | F81: 0 | G81: 3225748 | H81: 70.47658404 | I81: 29764 | J81: 167 | K81: 5.33 | L81: 91.02 | M81: 71.26 | N81: 31 | O81: 6.26 | P81: 31 | Q81: 6.26 | R81: 17 | S81: 5.84 | T81: 17 | U81: 5.84
A82: 92 | B82: Streptococcus agalactiae strain S13 | C82: CP018623.1 | D82: sagalactiae | E82: sagal | F82: 0 | G82: 1835156 | H82: 35.43486221 | I82: 43411 | J82: 157 | K82: 9.66 | L82: 92.36 | M82: 73.25 | N82: 82 | O82: 13.99 | P82: 81 | Q82: 13.94 | R82: 54 | S82: 12.56 | T82: 54 | U82: 12.56
A83: 78 | B83: Spiroplasma apis B31 | C83: CP006682.1 | D83: sapis | E83: sapis | F83: 0 | G83: 1160554 | H83: 28.30398241 | I83: 27655 | J83: 83 | K83: 8.39 | L83: 96.39 | M83: 75.9 | N83: 14 | O83: 9.67 | P83: 13 | Q83: 9.58 | R83: 9 | S83: 9.22 | T83: 8 | U83: 9.13
A84: 88 | B84: Staphylococcus aureus 04-02981 | C84: NC_017340.1 | D84: saureus | E84: saure | F84: 0 | G84: 2821452 | H84: 32.89660785 | I84: 70648 | J84: 474 | K84: 17.26 | L84: 79.32 | M84: 58.86 | N84: 140 | O84: 21.28 | P84: 139 | Q84: 21.25 | R84: 88 | S84: 19.83 | T84: 88 | U84: 19.83
A85: 96 | B85: Streptomyces avermitilis MA-4680 | C85: NC_003155.5 | D85: savermitilis | E85: saver | F85: 0 | G85: 9025608 | H85: 70.7165545 | I85: 98465 | J85: 362 | K85: 4.91 | L85: 81.77 | M85: 64.36 | N85: 168 | O85: 7.03 | P85: 163 | Q85: 6.97 | R85: 108 | S85: 6.29 | T85: 106 | U85: 6.26
A86: 79 | B86: Spiroplasma cantharicola strain CC-1 | C86: NZ_CP012622.1 | D86: scantharicola | E86: scant | F86: 0 | G86: 1179577 | H86: 25.00930418 | I86: 26370 | J86: 70 | K86: 6.97 | L86: 90 | M86: 75.71 | N86: 18 | O86: 8.6 | P86: 18 | Q86: 8.6 | R86: 14 | S86: 8.24 | T86: 14 | U86: 8.24
A87: 80 | B87: Spiroplasma citri strain R8-A2 chromosome | C87: NZ_CP013197.1 | D87: scitri | E87: scitr | F87: 0 | G87: 1599709 | H87: 25.56233665 | I87: 37770 | J87: 261 | K87: 22.23 | L87: 88.51 | M87: 68.58 | N87: 410 | O87: 42.36 | P87: 403 | Q87: 42.11 | R87: 265 | S87: 36.55 | T87: 263 | U87: 36.46
A88: 81 | B88: Spiroplasma clarkii | C88: CP015819.1 | D88: sclarkii | E88: sclar | F88: 0 | G88: 1558445 | H88: 29.5999538 | I88: 40979 | J88: 273 | K88: 19.17 | L88: 88.64 | M88: 65.57 | N88: 170 | O88: 27.79 | P88: 162 | Q88: 27.43 | R88: 116 | S88: 25.26 | T88: 110 | U88: 24.97
A89: 97 | B89: Streptomyces coelicolor A3(2) | C89: NC_003888.3 | D89: scoelicolor | E89: scoel | F89: Friedman2017 | G89: 8667507 | H89: 72.11866111 | I89: 83421 | J89: 363 | K89: 4.73 | L89: 84.02 | M89: 64.46 | N89: 112 | O89: 6.1 | P89: 111 | Q89: 6.09 | R89: 69 | S89: 5.58 | T89: 69 | U89: 5.58
A90: 82 | B90: Spiroplasma culicicola AES1 | C90: NZ_CP006681.1 | D90: sculicicola | E90: sculi | F90: 0 | G90: 1175131 | H90: 26.3615716 | I90: 29050 | J90: 70 | K90: 6.62 | L90: 91.43 | M90: 78.57 | N90: 16 | O90: 8.01 | P90: 16 | Q90: 8.01 | R90: 8 | S90: 7.32 | T90: 8 | U90: 7.32
A91: 83 | B91: Spiroplasma diminutum CUAS1 | C91: CP005076.1 | D91: sdiminutum | E91: sdimi | F91: 0 | G91: 945296 | H91: 25.45911545 | I91: 21626 | J91: 68 | K91: 8.15 | L91: 94.12 | M91: 83.82 | N91: 7 | O91: 8.92 | P91: 7 | Q91: 8.92 | R91: 4 | S91: 8.59 | T91: 4 | U91: 8.59
A92: 73 | B92: Salmonella enterica subsp. enterica serovar Typhi str. P-stx-12 | C92: CP003278.1 | D92: senterica | E92: sente | F92: 0 | G92: 4768352 | H92: 52.06394159 | I92: 101615 | J92: 721 | K92: 15.57 | L92: 73.09 | M92: 51.87 | N92: 289 | O92: 20.53 | P92: 289 | Q92: 20.53 | R92: 201 | S92: 19.09 | T92: 201 | U92: 19.09
A93: 91 | B93: Staphylococcus epidermidis strain 14.1.R1 chromosome, | C93: CP018842.1 | D93: sepidermidis | E93: sepid | F93: 0 | G93: 2572575 | H93: 32.19715655 | I93: 62774 | J93: 330 | K93: 13.98 | L93: 86.67 | M93: 66.36 | N93: 82 | O93: 16.87 | P93: 80 | Q93: 16.8 | R93: 48 | S93: 15.7 | T93: 48 | U93: 15.7
A94: 84 | B94: Spiroplasma kunkelii CR2-3x | C94: NZ_CP010899.1 | D94: skunkelii | E94: skunk | F94: 0 | G94: 1463926 | H94: 24.97127587 | I94: 34218 | J94: 265 | K94: 23.85 | L94: 89.43 | M94: 65.66 | N94: 571 | O94: 49.7 | P94: 558 | Q94: 49.31 | R94: 369 | S94: 42.84 | T94: 360 | U94: 42.49
A95: 85 | B95: Spiroplasma mirum ATCC 29335 strain SMCA | C95: CP006720.1 | D95: smirum | E95: smiru | F95: 0 | G95: 1132608 | H95: 29.41211787 | I95: 27298 | J95: 459 | K95: 33.19 | L95: 84.97 | M95: 58.39 | N95: 49 | O95: 35.47 | P95: 49 | Q95: 35.47 | R95: 26 | S95: 34.42 | T95: 26 | U95: 34.42
A96: 75 | B96: Shewanella oneidensis MR-1 chromosome | C96: NC_004347.2 | D96: soneidensis | E96: sonei | F96: 0 | G96: 4969811 | H96: 45.96088262 | I96: 126392 | J96: 278 | K96: 7.21 | L96: 93.88 | M96: 74.82 | N96: 209 | O96: 11.97 | P96: 201 | Q96: 11.8 | R96: 137 | S96: 10.39 | T96: 134 | U96: 10.32
A97: 95 | B97: Streptococcus pyogenes MGAS8232 | C97: AE009949.1 | D97: spyogenes | E97: spyog | F97: 0 | G97: 1895017 | H97: 38.5466199 | I97: 45868 | J97: 245 | K97: 13.54 | L97: 89.8 | M97: 73.88 | N97: 83 | O97: 17.33 | P97: 83 | Q97: 17.33 | R97: 48 | S97: 15.77 | T97: 48 | U97: 15.77
A98: 86 | B98: Spiroplasma sabaudiense Ar1343 | C98: CP006934.1 | D98: ssabaudiense | E98: ssaba | F98: 0 | G98: 1075953 | H98: 30.1642358 | I98: 26145 | J98: 60 | K98: 6.51 | L98: 96.67 | M98: 76.67 | N98: 15 | O98: 8 | P98: 14 | Q98: 7.91 | R98: 10 | S98: 7.51 | T98: 9 | U98: 7.41
A99: 76 | B99: Shigella sonnei 53G | C99: NC_016822.1 | D99: ssonei | E99: ssone | F99: 0 | G99: 4988504 | H99: 50.98336094 | I99: 113505 | J99: 661 | K99: 15.14 | L99: 74.13 | M99: 53.86 | N99: 842 | O99: 28.86 | P99: 842 | Q99: 28.86 | R99: 545 | S99: 24.56 | T99: 545 | U99: 24.56
A100: 87 | B100: Spiroplasma taiwanense CT1 | C100: NC_021846.1 | D100: staiwanense | E100: staiw | F100: 0 | G100: 1075140 | H100: 23.87344904 | I100: 24132 | J100: 134 | K100: 12.8 | L100: 88.06 | M100: 68.66 | N100: 51 | O100: 16.85 | P100: 50 | Q100: 16.77 | R100: 26 | S100: 14.91 | T100: 26 | U100: 14.91
A101: 98 | B101: Symbiobacterium thermophilum IAM 14863 | C101: NC_006177.1 | D101: sthermophilum | E101: sther | F101: 0 | G101: 3566135 | H101: 68.66840431 | I101: 42235 | J101: 195 | K101: 6.26 | L101: 87.69 | M101: 69.23 | N101: 23 | O101: 6.94 | P101: 22 | Q101: 6.92 | R101: 10 | S101: 6.56 | T101: 10 | U101: 6.56
A102: 100 | B102: Thermosynechococcus elongatus BP-1 | C102: NC_004113.1 | D102: telongatus | E102: telon | F102: 0 | G102: 2593857 | H102: 53.91792994 | I102: 61663 | J102: 236 | K102: 9.86 | L102: 84.75 | M102: 65.25 | N102: 43 | O102: 11.45 | P102: 42 | Q102: 11.42 | R102: 24 | S102: 10.76 | T102: 24 | U102: 10.76
A103: 101 | B103: Thermotoga maritima strain Tma200 | C103: CP010967.1 | D103: tmaritima | E103: tmari | F103: 0 | G103: 1859582 | H103: 46.27201167 | I103: 36448 | J103: 147 | K103: 7.92 | L103: 93.88 | M103: 76.19 | N103: 16 | O103: 8.71 | P103: 16 | Q103: 8.71 | R103: 5 | S103: 8.17 | T103: 5 | U103: 8.17
A104: 102 | B104: Tropheryma whipplei str. Twist | C104: NC_004572.3 | D104: twhipplei | E104: twhip | F104: 0 | G104: 927303 | H104: 46.3319972 | I104: 22824 | J104: 87 | K104: 10.47 | L104: 85.06 | M104: 62.07 | N104: 25 | O104: 13.08 | P104: 19 | Q104: 12.47 | R104: 10 | S104: 11.53 | T104: 10 | U104: 11.53
A105: 103 | B105: Ureaplasma | C105: NC_011374.1 | D105: uurealyticum | E105: uurea | F105: 0 | G105: 874478 | H105: 25.77423331 | I105: 21111 | J105: 63 | K105: 9.91 | L105: 93.65 | M105: 77.78 | N105: 9 | O105: 11.16 | P105: 8 | Q105: 11.02 | R105: 6 | S105: 10.75 | T105: 5 | U105: 10.61
A106: 104 | B106: Vibrio cholerae O395 chromosome I | C106: NC_012582.1 | D106: vcholerae | E106: vchol | F106: 0 | G106: 3024078 | H106: 47.77998451 | I106: 76849 | J106: 256 | K106: 9.72 | L106: 80.08 | M106: 61.33 | N106: 134 | O106: 14.09 | P106: 134 | Q106: 14.09 | R106: 86 | S106: 12.57 | T106: 86 | U106: 12.57
A107: 105 | B107: Wolinella succinogenes DSM 1740 | C107: NC_005090.1 | D107: wsuccinogenes | E107: wsucc | F107: 0 | G107: 2110355 | H107: 48.45800825 | I107: 47858 | J107: 125 | K107: 6.2 | L107: 88 | M107: 58.4 | N107: 41 | O107: 8.07 | P107: 41 | Q107: 8.07 | R107: 22 | S107: 7.21 | T107: 22 | U107: 7.21
A108: 106 | B108: Xanthomonas axonopodis Xac29-1 | C108: NC_020800.1 | D108: xaxonopodis | E108: xaxon | F108: 0 | G108: 5153455 | H108: 64.82243466 | I108: 80921 | J108: 277 | K108: 6.6 | L108: 81.59 | M108: 53.43 | N108: 195 | O108: 10.75 | P108: 189 | Q108: 10.62 | R108: 137 | S108: 9.55 | T108: 136 | U108: 9.53
A109: 107 | B109: Xanthomonas campestris strain 17 | C109: CP011256.1 | D109: xcampestris | E109: xcamp | F109: 0 | G109: 5254865 | H109: 65.3770173 | I109: 80516 | J109: 201 | K109: 4.8 | L109: 86.57 | M109: 70.15 | N109: 314 | O109: 11.43 | P109: 306 | Q109: 11.27 | R109: 213 | S109: 9.4 | T109: 212 | U109: 9.38
A110: 108 | B110: Xylella fastidiosa 9a5c | C110: NC_002488.3 | D110: xfastidiosa | E110: xfast | F110: 0 | G110: 2679306 | H110: 52.67408799 | I110: 66028 | J110: 282 | K110: 12.77 | L110: 73.4 | M110: 40.43 | N110: 119 | O110: 17.23 | P110: 118 | Q110: 17.19 | R110: 70 | S110: 15.45 | T110: 70 | U110: 15.45
A111: 109 | B111: Yersinia pestis KIM10+ | C111: AE009952.1 | D111: ypestis | E111: ypest | F111: 0 | G111: 4600755 | H111: 47.6411589 | I111: 113144 | J111: 511 | K111: 13.16 | L111: 85.91 | M111: 58.9 | N111: 252 | O111: 18.45 | P111: 250 | Q111: 18.41 | R111: 162 | S111: 16.64 | T111: 162 | U111: 16.64
A112: STATS1 | B112: AVERAGE | C112: NA | D112: NA | E112: NA | F112: NA | G112: NA | H112: NA | I112: NA | J112: =AVERAGE(J3:J111) -> 231.4036697 | K112: =AVERAGE(K3:K111) -> 10.59743119 | L112: =AVERAGE(L3:L111) -> 86.55247706 | M112: =AVERAGE(M3:M111) -> 67.11954128 | N112: =AVERAGE(N3:N111) -> 131.1666667 | O112: =AVERAGE(O3:O111) -> 16.37165138 | P112: =AVERAGE(P3:P111) -> 134.0825688 | Q112: =AVERAGE(Q3:Q111) -> 16.2359633 | R112: =AVERAGE(R3:R111) -> 83.95412844 | S112: =AVERAGE(S3:S111) -> 14.24036697 | T112: =AVERAGE(T3:T111) -> 83.06422018 | U112: =AVERAGE(U3:U111) -> 14.17458716
A113: STATS2 | B113: ST. DEVIATION | C113: NA | D113: NA | E113: NA | F113: NA | G113: NA | H113: NA | I113: NA | J113: =STDEV(J3:J111) -> 186.7555403 | K113: =STDEV(K3:K111) -> 5.302089107 | L113: =STDEV(L3:L111) -> 7.429144953 | M113: =STDEV(M3:M111) -> 11.73896064 | N113: =STDEV(N3:N111) -> 168.9088954 | O113: =STDEV(O3:O111) -> 9.426257507 | P113: =STDEV(P3:P111) -> 176.0930482 | Q113: =STDEV(Q3:Q111) -> 9.307952108 | R113: =STDEV(R3:R111) -> 118.0617686 | S113: =STDEV(S3:S111) -> 7.741970862 | T113: =STDEV(T3:T111) -> 117.7489699 | U113: =STDEV(U3:U111) -> 7.692194761
A114: STATS3 | B114: SUM | C114: NA | D114: NA | E114: NA | F114: NA | G114: NA | H114: NA | I114: NA | J114: =SUM(J3:J111) -> 25223 | K114: NA | L114: NA | M114: NA | N114: =SUM(N3:N111) -> 14166 | O114: NA | P114: =SUM(P3:P111) -> 14615 | Q114: NA | R114: =SUM(R3:R111) -> 9151 | S114: NA | T114: =SUM(T3:T111) -> 9054 | U114: NA
A115: STATS4 | B115: MEDIAN | C115: NA | D115: NA | E115: NA | F115: NA | G115: NA | H115: NA | I115: NA | J115: =MEDIAN(J2:J111) -> 195 | K115: =MEDIAN(K2:K111) -> 9.11 | L115: =MEDIAN(L2:L111) -> 86.9 | M115: =MEDIAN(M2:M111) -> 65.57 | N115: =MEDIAN(N2:N111) -> 59 | O115: =MEDIAN(O2:O111) -> 13.16 | P115: =MEDIAN(P2:P111) -> 59 | Q115: =MEDIAN(Q2:Q111) -> 13.08 | R115: =MEDIAN(R2:R111) -> 32 | S115: =MEDIAN(S2:S111) -> 11.51 | T115: =MEDIAN(T2:T111) -> 31 | U115: =MEDIAN(U2:U111) -> 11.51
